Cogmind - Beta 17 @@@ ROGUE MODE // 2026.08.23 @ 20:52:46 Player: IsAway Result: Destroyed by P-70 Sage with Tesla Rifle Performance ------------- Evolutions (5) 2500 Regions Visited (10) 2000 Robots Destroyed (70) 350 Value Destroyed (2210) 2210 Prototype IDs (2) 40 Alien Tech Used (0) 0 Bonus (162) 162 TOTAL SCORE: 7262 Bonus ------- High Alert Combat Kills 91 Follower Combat Kills 71 Cogmind --------- Core Integrity 0/1000 Matter 300/300 Energy 100/100 System Corruption 18% Temperature Cool (0) Movement Hovering (76) Location -5/Factory Parts ------- > --- POWER (3) -------- Backup Power I > --- PROPULSION (4) --- Backup Propulsion I Backup Propulsion I > --- UTILITY (7) ------ Enhanced Optical Array Hacking Suite > --- WEAPON (3) ------- Backup Laser I Backup Laser I > --- INVENTORY (5) ---- Light Antimatter Reactor Medium Storage Unit Matter Compressor (232) IFF Parser Improved Remote Datajack Peak State ------------ > --- POWER ------------ Neutrino Core Light Antimatter Reactor Light Antimatter Reactor > --- PROPULSION ------- Carbon-fiber Leg Carbon-fiber Leg Carbon-fiber Leg Thunder Leg > --- UTILITY ---------- Advanced Heat Sink Improved Cooling System Compact Battery Enhanced Optical Array Core Analyzer Improved Medium Armor Plating Hacking Suite > --- WEAPON ----------- Wave Gun Wave Gun KE Penetrator > --- INVENTORY -------- Carbon-fiber Leg Matter Compressor IFF Parser KE Penetrator KE Penetrator [Rating: 83] Favorites ----------- Power Micro Nuclear Core Engine Light Ion Engine Power Core Micro Nuclear Core Reactor Light Antimatter Reactor Propulsion Carbon-fiber Leg Leg Carbon-fiber Leg Wheel Wheel Hover Unit Backup Propulsion III Flight Unit Flight Unit Utility Hacking Suite Device Transmission Jammer Storage Small Storage Unit Processor Core Analyzer Hackware Hacking Suite Protection Improved Medium Armor Plating Weapon Wave Gun Energy Gun Wave Gun Energy Cannon Long-range Proton Cannon Ballistic Gun Light Assault Rifle Launcher EMP Blaster Special Weapon Mining Laser Impact Weapon Makeshift Hammer Slashing Weapon Tearclaws Build | -11 -10 -10 -10 -9 -8 -7 -7 -7 -6 -5 ------- Run | Yrd Mat Min Exi Min Mat Fac Low Low Fac Fac Slots Evolved 10 | . . . . . 4 2 . . 2 2 Power 2 | . . . . . 1 . . . . 1 Propulsion 2 | . . . . . 2 . . . . . Utility 5 | . . . . . 1 2 . . 1 1 Weapon 1 | . . . . . . . . . 1 . Parts Attached 112 | 8 7 3 . 5 24 13 6 . 10 36 Power 18 | 1 . . . 1 4 2 1 . 2 7 Engine 8 | 1 . . . 1 4 . . . 1 1 Core 8 | . . . . . . 2 1 . 1 4 Reactor 2 | . . . . . . . . . . 2 Propulsion 31 | 2 4 1 . 1 11 2 . . 4 6 Treads . | . . . . . . . . . . . Leg 15 | . . 1 . . 4 . . . 4 6 Wheel 5 | 2 1 . . . 1 1 . . . . Hover . | . . . . . . . . . . . Flight 11 | . 3 . . 1 6 1 . . . . Utility 31 | 2 1 2 . . 3 7 1 . 4 11 Device 13 | 1 1 1 . . 1 4 . . 2 3 Storage 7 | 1 . . . . . 1 . . 2 3 Processor 3 | . . . . . 1 . 1 . . 1 Hackware 2 | . . . . . 1 1 . . . . Protection 6 | . . 1 . . . 1 . . . 4 Artifact . | . . . . . . . . . . . Weapon 32 | 3 2 . . 3 6 2 4 . . 12 Energy Gun 8 | 1 . . . . 4 . . . . 3 Energy Cannon 3 | . . . . . . . . . . 3 Ballistic Gun 13 | 2 . . . 2 1 1 1 . . 6 Ballistic Cannon . | . . . . . . . . . . . Launcher 4 | . . . . 1 1 1 1 . . . Special Weapon 2 | . 2 . . . . . . . . . Impact Weapon 1 | . . . . . . . 1 . . . Slashing Weapon 1 | . . . . . . . 1 . . . Piercing Weapon . | . . . . . . . . . . . Special Melee Weapon . | . . . . . . . . . . . Unidentified Prototypes 2 | . . . . . 2 . . . . . Corrupted Parts 6 | . . . . . 2 1 1 . . 2 System Corruption 39 | . . . . . 14 5 7 . . 13 Parts Lost 52 | . 6 . . . 14 1 4 . 3 24 Power 9 | . 1 . . . 2 . . . . 6 Propulsion 20 | . 4 . . . 5 1 3 . . 7 Utility 9 | . . . . . 2 . . . 3 4 Weapon 14 | . 1 . . . 5 . 1 . . 7 Highest Loss Streak 12 | . 4 . . . 6 1 2 . 3 12 To Critical Strikes . | . . . . . . . . . . . Average Backups 6 | 4 7 5 5 4 4 6 7 8 6 6 Power 1 | . 1 1 1 . . . 2 2 1 . Propulsion . | 2 2 . . . . . . . . . Utility 2 | . 2 3 3 3 2 3 2 3 1 2 Weapon 1 | . 1 . 1 1 1 1 2 3 2 2 Tool/Special . | . . . . . . . . . . . Unused Backups 13 | . 4 . 1 . . 1 . . . 7 Power . | . . . . . . . . . . . Propulsion 4 | . 4 . . . . . . . . . Utility 4 | . . . 1 . . 1 . . . 2 Weapon 4 | . . . . . . . . . . 4 Tool/Special 1 | . . . . . . . . . . 1 Average Slot Usage (%) 75 | . 89 54 71 82 63 92 61 46 75 90 Engine 4 | . 10 . . 11 10 10 . . 7 2 Core 3 | . . . . . . 3 5 . . 9 Leg 7 | . . 7 14 2 4 . . . 11 20 Wheel 1 | . 16 . . . . . 1 . . . Flight 9 | . 7 . . 11 16 28 12 7 1 . Device 10 | . 14 17 28 28 6 11 7 7 13 9 Storage 5 | . 13 . . . . 4 7 7 5 8 Processor 4 | . . . . . . 4 5 7 6 8 Hackware 8 | . . . . . 9 9 15 15 9 5 Protection 1 | . . . . . 3 4 . . . 3 Energy Gun 5 | . 10 . . . 4 9 . . 9 8 Ballistic Gun 4 | . 8 14 14 20 3 . 1 . 3 5 Special Weapon 1 | . 7 14 14 5 . . . . . . Peak Build Rating 83 | 9 10 7 7 7 25 34 37 21 56 83 Average Rating 31 | 5 7 5 6 6 12 29 26 21 41 70 On Entrance 17 | . 9 4 7 6 7 25 31 21 21 56 Avg Prop Armor Cover (%) 9 | . 3 13 13 . 6 6 8 7 6 . Naked Turns . | . . . . . . . . . . . Heaviest Build 71 | 12 12 3 3 6 19 26 22 6 27 71 Greatest Support 75 | 20 20 3 3 10 39 20 19 3 60 75 Greatest Overweight (x) 4 | . 2 . . . 3 2 4 1 2 1 Average Overweight (x) . | . . . . . . . . 1 . . Largest Inventory Capacity 10 | 8 8 5 5 5 5 8 8 8 8 10 Average Capacity 6 | 6 7 5 5 5 5 6 8 8 6 7 Most Carried 10 | 7 8 5 5 5 5 8 8 8 8 10 Average Carried 6 | 4 7 4 4 4 4 6 7 8 6 6 Final Capacity 8 | 8 5 5 5 5 5 8 8 8 5 5 Final Carried 8 | 7 5 5 5 5 5 8 8 8 5 5 Class Distribution -------------------- 26% | Scavenger-Gunner 25% | Hacker-Mutant 24% | Mutant 13% | Scavenger-Sprinter 10% | Scavenger-Mutant Dominant Class ---------------- Mutant | -10/Materials Mutant | -10/Mines Mutant | -10/Exiles Mutant | -9/Mines Scavenger-Mutant | -8/Materials Scavenger-Sprinter | -7/Factory Hacker-Mutant | -7/Lower Caves Hacker-Mutant | -7/Lower Caves Scavenger-Gunner | -6/Factory Scavenger-Gunner | -5/Factory Resources | -11 -10 -10 -10 -9 -8 -7 -7 -7 -6 -5 ----------- Run | Yrd Mat Min Exi Min Mat Fac Low Low Fac Fac Matter Collected 2598 | 288 20 37 75 71 473 186 287 . 121 1040 Remotely . | . . . . . . . . . . . Salvage Created 3018 | 103 154 . . 26 751 240 131 . 190 1423 Parts 154 | 8 9 . . 3 36 14 8 . 7 69 Haulers Intercepted 1 | . . . . . 1 . . . . . Recyclers Shooed 3 | . . . . . 1 . . . . 2 Parts Field Recycled . | . . . . . . . . . . . Retrieved Matter . | . . . . . . . . . . . Parts Self-Destructed 7 | . . . . . . . 7 . . . Prevented . | . . . . . . . . . . . Parts Restored . | . . . . . . . . . . . Kills | -11 -10 -10 -10 -9 -8 -7 -7 -7 -6 -5 ------- Run | Yrd Mat Min Exi Min Mat Fac Low Low Fac Fac Combat Hostiles Destroyed 51 | . 3 . . 3 15 5 3 . 3 19 Melee 1 | . . . . . . . . . 1 . Guns 28 | . 1 . . . 6 1 2 . 2 16 Cannons 1 | . . . . . . . . . . 1 AOE 19 | . 2 . . 3 9 4 . . . 1 Classes Destroyed 14 | 2 2 . . 1 3 2 1 . . 3 Worker 4 | . . . . . . 1 . . . 3 Builder 4 | . . . . . . . . . . 4 Tunneler 1 | 1 . . . . . . . . . . Hauler 1 | . . . . . 1 . . . . . Recycler 6 | 1 . . . . 3 . . . . 2 Operator 1 | . 1 . . . . . . . . . Watcher 2 | . . . . . . 1 . . . 1 Swarmer 18 | . . . . 3 7 3 . . . 5 Grunt 16 | . 3 . . . 4 2 1 . 3 3 Duelist 2 | . . . . . 1 . 1 . . . Sentry 8 | . . . . . 3 . . . . 5 Hunter 5 | . . . . . . . . . . 5 Programmer 1 | . . . . . . . . . . 1 Thief 1 | . . . . . . . 1 . . . Best Kill Streak 8 | 1 3 . . 3 6 4 2 . 2 8 Combat Bots Only 5 | . 3 . . 3 4 3 2 . 2 5 Max Kills in Single Turn 3 | 1 2 . . 3 3 3 1 . 1 2 Gunslinging 1 | . . . . . 1 . . . . . Exploded 3 | . 2 . . 3 2 2 . . . 1 Melee 1 | . . . . . . . . . 1 . Uniques/NPCs Destroyed . | . . . . . . . . . . . Combat | -11 -10 -10 -10 -9 -8 -7 -7 -7 -6 -5 -------- Run | Yrd Mat Min Exi Min Mat Fac Low Low Fac Fac Hostile Shots Fired 587 | . 63 . . 4 129 22 97 5 24 243 Missed 171 | . 22 . . 3 38 12 29 4 8 55 Hits 416 | . 41 . . 1 91 10 68 1 16 188 Melee 12 | . . . . . 1 . 11 . . . Projectile 404 | . 41 . . 1 90 10 57 1 16 188 Critical Strikes 9 | . 1 . . . 2 . 1 . . 5 Damage Taken 6846 | . 455 . . 27 1224 227 806 21 263 3823 Core 1851 | . 130 . . . 311 35 329 21 16 1009 Absorbed by Shields . | . . . . . . . . . . . Core Remaining (%) 66 | 100 . . . 48 43 . . 45 98 . Volleys Fired 168 | 5 18 . . 1 45 13 15 . 5 66 Largest 3 | 2 2 . . 1 2 2 2 . 3 3 Hottest 231 | 60 120 . . 33 112 92 50 . 105 231 Shots Fired 350 | 10 27 . . 1 57 20 26 . 15 194 Gun 300 | 10 23 . . . 34 13 25 . 15 180 Cannon 14 | . . . . . . . . . . 14 Launcher 28 | . . . . 1 19 7 1 . . . Special 8 | . 4 . . . 4 . . . . . Kinetic 155 | 5 15 . . . 19 . 25 . 5 86 Thermal 140 | . 4 . . . 19 13 . . 10 94 Explosive 4 | . . . . 1 3 . . . . . Electromagnetic 51 | 5 8 . . . 16 7 1 . . 14 Robot Hit Streak 20 | 3 12 . . . 9 10 4 . 17 20 Robot Miss Streak 9 | 1 3 . . 2 2 3 3 . . 9 Penetration Max 1 | . . . . . . . . . . 1 Secondary Targets 6 | . . . . . 2 . 1 . . 3 Max Gunslinging Chain 1 | . . . . . 1 . 1 . . 1 Shots Hit Robots 223 | 6 14 . . . 38 15 16 . 19 115 Core Hits 145 | 4 7 . . 3 31 9 6 . 7 78 Critical Kills 1 | . . . . . . . . . . 1 Critical Parts Destroyed 2 | . . . . . 1 . . . 1 . Critical Strikes 7 | . . . . . 1 1 . . 1 4 Burn 4 | . . . . . . 1 . . . 3 Destroy 2 | . . . . . 1 . . . . 1 Smash 1 | . . . . . . . . . 1 . Melee Attacks 12 | . . . . . . . 7 . 5 . Impact 12 | . . . . . . . 7 . 5 . Slashing . | . . . . . . . . . . . Piercing . | . . . . . . . . . . . Sneak Attacks 1 | . . . . . . . . . 1 . Combat Hostiles 1 | . . . . . . . . . 1 . Follow-up Attacks . | . . . . . . . . . . . Damage Inflicted 5697 | 63 197 . . 131 1152 515 355 . 386 2898 Guns 3503 | 63 130 . . . 273 156 218 . 210 2453 Cannons 266 | . . . . . . . . . . 266 Explosions 1651 | . 67 . . 131 873 359 47 . . 174 Melee 266 | . . . . . . . 90 . 176 . Ramming 11 | . . . . . 6 . . . . 5 Kinetic 1665 | 24 69 . . . 119 . 218 . 77 1158 Thermal 2072 | . 67 . . . 154 249 . . 133 1469 Explosive 570 | . . . . 131 439 . . . . . Electromagnetic 1113 | 39 61 . . . 434 266 47 . . 266 Impact 266 | . . . . . . . 90 . 176 . Slashing . | . . . . . . . . . . . Piercing . | . . . . . . . . . . . Highest Corruption 17 | . . . . . 15 6 13 13 . 17 Average Corruption 11 | . . . . . 13 2 10 13 . 13 Corruption Purged . | . . . . . . . . . . . Corruption Blocked . | . . . . . . . . . . . Effects 73 | . . . . . 12 . 30 . . 31 Message Errors 14 | . . . . . 4 . 7 . . 3 Matter Fused 15 | . . . . . 2 . 7 . . 6 Heat Flow Errors 9 | . . . . . 1 . 3 . . 5 Energy Discharges 12 | . . . . . 3 . 6 . . 3 Parts Rejected 3 | . . . . . . . 1 . . 2 Data Loss (minor) 6 | . . . . . . . 2 . . 4 Data Loss (major) 4 | . . . . . . . 2 . . 2 Misfires 3 | . . . . . . . . . . 3 Misdirections 2 | . . . . . 2 . . . . . Weapon Failures 5 | . . . . . . . 2 . . 3 Overload Shots . | . . . . . . . . . . . Overflow Damage 202 | . . . . . 48 20 27 . 46 61 Projectiles . | . . . . . . . . . . . Explosions 129 | . . . . . 48 20 . . . 61 Melee 73 | . . . . . . . 27 . 46 . Knockbacks 2 | . . . . . 1 . 1 . . . Impact 2 | . . . . . 1 . 1 . . . Kinetic . | . . . . . . . . . . . Secondary . | . . . . . . . . . . . Self-Inflicted Damage 320 | . . . . 21 186 86 25 . . 2 Shots 16 | . . . . 1 9 5 1 . . . Rammed 3 | . . . . . . . . . . 3 Targets Rammed 6 | . . . . . 3 . . . . 3 Kicked 3 | . . . . . 3 . . . . . Crushed . | . . . . . . . . . . . Highest Temperature 567 | 40 112 . . . 258 147 317 . 74 567 Average Temperature 100 | 19 44 . . . 81 50 120 . 36 152 Received Heat Transfer 1317 | . 270 . . . 288 69 492 . 81 117 Effects 14 | . . . . . 2 . . . . 12 Shutdowns 2 | . . . . . . . . . . 2 Energy Bleed 1 | . . . . . . . . . . 1 Interference 6 | . . . . . 2 . . . . 4 Matter Decay 1 | . . . . . . . . . . 1 Short Circuit 2 | . . . . . . . . . . 2 Damage (major) 2 | . . . . . . . . . . 2 Siege Activations . | . . . . . . . . . . . Martial Activations . | . . . . . . . . . . . Shielding Activations . | . . . . . . . . . . . Robots Disrupted . | . . . . . . . . . . . Combat Hostiles . | . . . . . . . . . . . Robots Corrupted 2 | . . . . . . . 1 . . 1 Combat Hostiles 2 | . . . . . . . 1 . . 1 Parts Fried 5 | . . . . . 1 1 1 . . 2 Impact Corruptions 2 | . . . . . . . 1 . 1 . Robots Melted . | . . . . . . . . . . . Combat Hostiles . | . . . . . . . . . . . Parts Melted 7 | . . . . . 1 . . . 1 5 Heat Transferred 3667 | . 100 . . . 333 507 . . 370 2357 Parts Sabotaged . | . . . . . . . . . . . Parts Stolen 2 | . . . . . . . 2 . . . Parts Stripped . | . . . . . . . . . . . Power Chain Reactions 3 | . 1 . . . . 2 . . . . Alert | -11 -10 -10 -10 -9 -8 -7 -7 -7 -6 -5 ------- Run | Yrd Mat Min Exi Min Mat Fac Low Low Fac Fac Maximum Alert Level 2 | . . . . . 1 . . . . 2 Low Security (%) 71 | 100 100 100 . 100 75 100 . . 100 25 Level 1 20 | . . . . . 24 . . . . 50 Level 2 7 | . . . . . . . . . . 23 Level 3 . | . . . . . . . . . . . Level 4 . | . . . . . . . . . . . Level 5 . | . . . . . . . . . . . High Security . | . . . . . . . . . . . Max Security . | . . . . . . . . . . . Peak Influence 500 | 5 64 6 . 82 251 195 . . 45 500 Initial 100 | . . 6 . . 16 100 . . . . Average 127 | . 12 1 . 60 124 117 . . 8 260 Influence Increases 2185 | 10 119 . . 82 556 315 125 . 85 893 Destroy 0b10 Robot/C 1040 | . 60 . . 60 300 140 40 . 60 380 Destroy 0b10 Robot/NC 95 | 10 5 . . . 20 10 . . . 50 Destroy Leader 226 | . 10 . . 10 62 22 10 . 10 102 Allied During Kill 3 | . . . . . . 3 . . . . Successful Hack 31 | . 7 . . . 18 . . . . 6 Disable Machine 60 | . . . . . . 15 . . . 45 Anti-Garrison Action 200 | . . . . . . . . . . 200 Destroy Structure 110 | . 7 . . 12 36 5 . . . 50 Partial Spotted 135 | . 30 . . . . 75 . . 15 15 Lose Combat Pursuer 285 | . . . . . 120 45 75 . . 45 Influence Decreases 1874 | 10 103 16 . 40 376 342 320 . 85 582 Entered New Map 231 | . . 10 . . 26 122 73 . . . Time Decay 1097 | 10 53 6 . 40 214 170 227 . 55 322 Lost Part 486 | . 50 . . . 136 10 20 . 30 240 Lost Ally 60 | . . . . . . 40 . . . 20 Squads Dispatched 18 | . 3 . . . 5 . . . 2 8 Investigation 3 | . 1 . . . . . . . 1 1 Extermination 1 | . . . . . . . . . . 1 Reinforcement 9 | . 2 . . . 2 . . . 1 4 Assault . | . . . . . . . . . . . Garrison 5 | . . . . . 3 . . . . 2 Intercept . | . . . . . . . . . . . Searches Triggered . | . . . . . . . . . . . Construction Impeded 3 | . . . . . 1 . . . . 2 Haulers Reinforced . | . . . . . . . . . . . Active Scanning Responses . | . . . . . . . . . . . Cargo Convoy Interrupts . | . . . . . . . . . . . Stealth | -11 -10 -10 -10 -9 -8 -7 -7 -7 -6 -5 --------- Run | Yrd Mat Min Exi Min Mat Fac Low Low Fac Fac Distress Signals 6 | . 2 . . . 1 2 . . 1 . Communications Jammed 1 | . . . . . . 1 . . . . Distress Signals 1 | . . . . . . 1 . . . . Times Spotted 119 | . 11 . . 6 26 15 12 7 7 35 Peak Tracking Total 11 | . 6 . . 3 11 6 3 7 3 10 Tactical Retreats 11 | . . . . . 3 3 3 . . 2 Traps | -11 -10 -10 -10 -9 -8 -7 -7 -7 -6 -5 ------- Run | Yrd Mat Min Exi Min Mat Fac Low Low Fac Fac Traps Triggered 1 | . . . . . . 1 . . . . Indirectly 1 | . . . . . . 1 . . . . Trap Hack Attempts . | . . . . . . . . . . . Triggered . | . . . . . . . . . . . Disarmed . | . . . . . . . . . . . Reprogrammed . | . . . . . . . . . . . Reused . | . . . . . . . . . . . Traps Extracted . | . . . . . . . . . . . Installed . | . . . . . . . . . . . Triggered . | . . . . . . . . . . . Machines | -11 -10 -10 -10 -9 -8 -7 -7 -7 -6 -5 ---------- Run | Yrd Mat Min Exi Min Mat Fac Low Low Fac Fac Machines Disabled 7 | . . . . . . 1 3 . . 3 Max in Single Turn 3 | . . . . . . 1 3 . . 3 Garrison Access 1 | . . . . . . . . . . 1 Machines Repaired . | . . . . . . . . . . . Machines Dismantled . | . . . . . . . . . . . Machines Sabotaged . | . . . . . . . . . . . Overloaded Fab Kills . | . . . . . . . . . . . Hacking | -11 -10 -10 -10 -9 -8 -7 -7 -7 -6 -5 --------- Run | Yrd Mat Min Exi Min Mat Fac Low Low Fac Fac Machines Accessed 23 | . 2 . 1 . 6 5 . . 4 5 Terminals 8 | . 2 . . . 4 . . . 1 1 Fabricators 4 | . . . . . . 2 . . . 2 Repair Stations 4 | . . . . . 1 . . . 2 1 Recycling Units 1 | . . . . . . 1 . . . . Scanalyzers 4 | . . . . . 1 2 . . 1 . Garrison Access 1 | . . . . . . . . . . 1 Total Hacks 49 | . 7 . 1 . 11 8 . . 12 10 Successful 29 | . 4 . 1 . 7 5 . . 8 4 Failed 18 | . 3 . . . 4 2 . . 3 6 Catastrophic 2 | . 1 . . . . . . . . 1 Database Lockouts 2 | . . . . . . 1 . . 1 . Manual 20 | . 2 . . . 7 4 . . 3 4 Terminals 17 | . 7 . . . 6 . . . 1 3 Fabricators 6 | . . . . . . 3 . . . 3 Repair Stations 9 | . . . . . 2 . . . 5 2 Recycling Units 1 | . . . . . . 1 . . . . Scanalyzers 13 | . . . . . 3 4 . . 6 . Garrison Access 2 | . . . . . . . . . . 2 Terminal Hacks 5 | . 4 . 1 . . . . . . . Record 1 | . . . 1 . . . . . . . Part Schematic 1 | . 1 . . . . . . . . . Robot Analysis 2 | . 2 . . . . . . . . . Terminal Index 1 | . 1 . . . . . . . . . Fabricator Hacks 4 | . . . . . . 2 . . . 2 Load Schematic 1 | . . . . . . 1 . . . . Build 3 | . . . . . . 1 . . . 2 Repair Station Hacks 4 | . . . . . 1 . . . 2 1 Scan Component 2 | . . . . . 1 . . . 1 . Refit 2 | . . . . . . . . . 1 1 Recycling Unit Hacks . | . . . . . . . . . . . Scanalyzer 10 | . . . . . 3 2 . . 5 . Insert Component 3 | . . . . . . 1 . . 2 . Analyze 2 | . . . . . . . . . 2 . Retrieve Study 5 | . . . . . 3 1 . . 1 . Garrison Access Hacks . | . . . . . . . . . . . Unauthorized Hacks 6 | . . . . . 3 1 . . 1 1 Terminals 4 | . . . . . 3 . . . 1 . Botnet 3 | . . . . . 2 . . . 1 . Detonate 1 | . . . . . 1 . . . . . Fabricators . | . . . . . . . . . . . Repair Stations . | . . . . . . . . . . . Recycling Units . | . . . . . . . . . . . Scanalyzers 1 | . . . . . . 1 . . . . Researchers 1 | . . . . . . 1 . . . . Garrison Access 1 | . . . . . . . . . . 1 Jam 1 | . . . . . . . . . . 1 Data Cores Recovered . | . . . . . . . . . . . Used . | . . . . . . . . . . . Hacking Detections 20 | . 3 . . . 5 5 . . 3 4 Full Trace Events 1 | . . . . . . . . . 1 . Feedback Events . | . . . . . . . . . . . Feedback Blocked . | . . . . . . . . . . . Robot Schematics Acquired . | . . . . . . . . . . . Robots Built . | . . . . . . . . . . . Authchips . | . . . . . . . . . . . Time . | . . . . . . . . . . . Total Robot Build Rating . | . . . . . . . . . . . Part Schematics Acquired 3 | . 1 . . . . . . . 2 . Parts Built 4 | . . . . . . 2 . . . 2 Authchips . | . . . . . . . . . . . Time 314 | . . . . . . 117 . . . 197 Total Part Build Rating 28 | . . . . . . 14 . . . 14 Part Studies Acquired 5 | . . . . . 3 1 . . 1 . Parts Repaired . | . . . . . . . . . . . Time . | . . . . . . . . . . . Parts Recycled . | . . . . . . . . . . . Recycled Matter . | . . . . . . . . . . . Retrieved Matter . | . . . . . . . . . . . Retrieved Components . | . . . . . . . . . . . Parts Scanalyzed 2 | . . . . . . . . . 2 . Part Schematics Acquired 2 | . . . . . . . . . 2 . Parts Damaged . | . . . . . . . . . . . Bothacking | -11 -10 -10 -10 -9 -8 -7 -7 -7 -6 -5 ------------ Run | Yrd Mat Min Exi Min Mat Fac Low Low Fac Fac Used RIF Installer . | . . . . . . . . . . . Robots Hacked . | . . . . . . . . . . . Non-combat . | . . . . . . . . . . . Combat . | . . . . . . . . . . . Robot Hacks Applied . | . . . . . . . . . . . Relay Couplers Released . | . . . . . . . . . . . Fabnet Peak Effective % . | . . . . . . . . . . . Robots Rewired 2 | . . . . . . 2 . . . . Allies Hacked . | . . . . . . . . . . . Hacks Repelled . | . . . . . . . . . . . Allies | -11 -10 -10 -10 -9 -8 -7 -7 -7 -6 -5 -------- Run | Yrd Mat Min Exi Min Mat Fac Low Low Fac Fac Total Allies 2 | . . . . . . 2 . . . . Largest Group 1 | . . . . . . 1 . . . . Highest-Rated Group 32 | . . . . . . 32 . . . . Highest-Rated Ally 32 | . . . . . . 32 . . . . Total Orders 2 | . . . . . . 2 . . . . GUARD 2 | . . . . . . 2 . . . . Ally Attacks 12 | . . . . . . 12 . . . . Total Damage 349 | . . . . . . 349 . . . . Kills 2 | . . . . . . 2 . . . . Allies Corrupted . | . . . . . . . . . . . Allies Melted . | . . . . . . . . . . . Intel | -11 -10 -10 -10 -9 -8 -7 -7 -7 -6 -5 ------- Run | Yrd Mat Min Exi Min Mat Fac Low Low Fac Fac Active Infowar (turns) 1511 | 26 235 . . . 18 342 372 . 20 498 Optics 728 | . . . . . 18 212 . . . 498 Terrain 84 | 26 58 . . . . . . . . . Structural 177 | . 177 . . . . . . . . . Jamming 574 | . . . . . . 182 372 . 20 . Robot Analysis Total 2 | . 2 . . . . . . . . . Derelict Logs Recovered 2 | . . 1 . . . . 1 . . . Drone Launches 2 | . . . . . . . . . . 2 Drone Recoveries . | . . . . . . . . . . . Exploration | -11 -10 -10 -10 -9 -8 -7 -7 -7 -6 -5 ------------- Run | Yrd Mat Min Exi Min Mat Fac Low Low Fac Fac Turns Passed 3413 | 114 241 97 144 99 452 342 851 14 296 763 Spaces Moved 3481 | 65 184 172 286 165 572 556 867 15 208 391 Core 921 | 2 23 172 286 4 72 . 253 15 52 42 Treads . | . . . . . . . . . . . Legs 465 | . . . . . 24 . . . 100 341 Wheels 381 | 63 120 . . . 11 41 146 . . . Hover 64 | . . . . . . . . . 56 8 Flight 1650 | . 41 . . 161 465 515 468 . . . Fastest Speed 28 | 50 37 50 50 40 29 28 28 100 76 50 Average Speed 68 | 79 72 50 50 40 46 34 84 100 114 113 Slowest Speed 250 | 80 150 50 50 50 200 110 250 100 156 190 Overloaded Moves . | . . . . . . . . . . . Propulsion Burnouts . | . . . . . . . . . . . Robots Hopped 10 | . . . . . 1 8 1 . . . Potential Cave-ins . | . . . . . . . . . . . Cave-ins Triggered . | . . . . . . . . . . . Exploration Rate (%) 35 | 4 38 55 70 47 46 14 92 5 5 11 Regions Visited 10 Branch Regions 5 Pre-discovered Areas 1 | . . . . . . . 1 . . . Known Exits Taken . | . . . . . . . . . . . Unknown Exits Taken 10 | 1 1 1 1 1 1 1 1 1 1 . Scrap Searched 6 | . . 1 . 2 . . 3 . . . Spaces Dug 9 | . 4 . . . 4 . . . . 1 Terrain Destroyed 86 | . 8 . . 12 40 4 1 . . 21 Melee . | . . . . . . . . . . . Projectile 15 | . 4 . . . 4 . 1 . . 6 AOE 71 | . 4 . . 12 36 4 . . . 15 Terrain Rammed . | . . . . . . . . . . . Walls Destroyed . | . . . . . . . . . . . Machines Disabled . | . . . . . . . . . . . Actions | -11 -10 -10 -10 -9 -8 -7 -7 -7 -6 -5 --------- Run | Yrd Mat Min Exi Min Mat Fac Low Low Fac Fac Total 4208 | 114 261 182 287 194 685 680 958 14 250 583 Wait 252 | 26 32 6 . 20 22 61 49 . 7 29 Move 3453 | 64 183 171 285 164 569 541 864 14 207 391 Hop 8 | . . . . . 1 6 1 . . . Pick Up 57 | 8 8 1 1 1 6 6 3 . 4 19 Fast Attach 63 | 6 1 1 . 1 19 8 4 . 8 15 Attach 45 | 2 5 2 . 1 5 6 6 . 5 13 Detach 15 | . . 1 . . . 8 4 . 2 . Swap 38 | 2 4 . . 4 7 4 . . 1 16 Drop 75 | 1 10 . 1 2 8 11 5 . 6 31 Fire 168 | 5 18 . . 1 45 13 15 . 5 66 Melee 12 | . . . . . . . 7 . 5 . Ram 3 | . . . . . . . . . . 3 Kick 3 | . . . . . 3 . . . . . Crush . | . . . . . . . . . . . Escape Stasis . | . . . . . . . . . . . Rewire 16 | . . . . . . 16 . . . . Trap . | . . . . . . . . . . . Miscellaneous . | . . . . . . . . . . . Route ------- -11/Scrapyard -10/Materials (discovered 2 exits: [*Mat] / [*Min]) -10/Mines -10/Exiles -9/Mines -8/Materials -7/Factory -7/Lower Caves -7/Lower Caves -6/Factory -5/Factory History --------- Turn | Location | Event 13 | -11/Scrapyard | Discovered new exit (range 16) 115 | -11/Scrapyard | Entered Materials 221 | -10/Materials | Discovered new exit (range 3) 330 | -10/Materials | Lost 4 parts (1p2n1w) 331 | -10/Materials | Build established: Mutant 337 | -10/Materials | Core integrity fell below 50% 344 | -10/Materials | Discovered new exit (range 6) 356 | -10/Materials | Entered Mines 366 | -10/Mines | A weapon hastily lodged in a ceiling crevice suddenly fell to the ground 388 | -10/Mines | Learned Materials stockpile data 411 | -10/Mines | Received a Rocket Launcher from a helpful Derelict 451 | -10/Mines | Deemed a non-threat by the Exiles lab entrance 451 | -10/Mines | Discovered new exit (range 5) 453 | -10/Mines | Entered Exiles 453 | -10/Exiles | Found Exiles lab abandoned 592 | -10/Exiles | Discovered new exit (range 12) 597 | -10/Exiles | Entered Mines 662 | -9/Mines | Met a Derelict bent on vengeance 691 | -9/Mines | Discovered new exit (range 5) 696 | -9/Mines | Entered Materials 696 | -8/Materials | Evolved 4 slots: Power x1, Propulsion x2, Utility x1 735 | -8/Materials | Garrison activated, responded to threat 942 | -8/Materials | System corruption reached 10% 954 | -8/Materials | Lost 6 parts (2p1n1u2w) 1022 | -8/Materials | Lost 4 parts (2n2w) 1033 | -8/Materials | Core integrity fell below 50% 1104 | -8/Materials | Discovered new exit (range 16) 1148 | -8/Materials | Entered Factory 1148 | -7/Factory | Evolved 2 slots: Utility x2 1329 | -7/Factory | Build established: Scavenger-Sprinter 1460 | -7/Factory | Central database locked down 1481 | -7/Factory | Fabricated Adv. Cryofiber Web? 1486 | -7/Factory | Discovered new exit (range 6) 1490 | -7/Factory | Entered Lower Caves 1500 | -7/Lower Caves | Encountered a Warlord checkpoint 1513 | -7/Lower Caves | Learned location of Extension (-5) 1645 | -7/Lower Caves | Spotted B-75 Beast 1787 | -7/Lower Caves | Lost 3 allies 1841 | -7/Lower Caves | System corruption reached 10% 1880 | -7/Lower Caves | Build established: Hacker-Mutant 2011 | -7/Lower Caves | Core integrity fell below 50% 2334 | -7/Lower Caves | Discovered new exit (range 8) 2341 | -7/Lower Caves | Entered another Lower Caves area 2346 | -7/Lower Caves | Discovered new exit (range 8) 2354 | -7/Lower Caves | Attracted the attention of an 0b10 outpost 2355 | -7/Lower Caves | Entered Factory 2355 | -6/Factory | Evolved 2 slots: Utility x1, Weapon x1 2446 | -6/Factory | Central database locked down 2518 | -6/Factory | Lost 3 parts (3u) 2591 | -6/Factory | Discovered new exit (range 7) 2651 | -6/Factory | Entered another Factory area 2651 | -5/Factory | Evolved 2 slots: Power x1, Utility x1 2702 | -5/Factory | Garrison activated, responded to threat 2727 | -5/Factory | System corruption reached 10% 2765 | -5/Factory | Build established: Scavenger-Gunner 2913 | -5/Factory | Fabricated Lgt. Antimatter Reactor? 3214 | -5/Factory | Lost 4 parts (2p1n1u) 3315 | -5/Factory | Lost 8 parts (1p3n1u3w) 3399 | -5/Factory | Core integrity fell below 50% 3402 | -5/Factory | Core integrity fell below 20% 3414 | -5/Factory | Destroyed by P-70 Sage with Tesla Rifle Last Messages --------------- Acquired 3 matter. System corrupted: Component data lost. K-01 Serf cleans the Assembly Bed. Slug penetrates Wall. U-05 Engineer builds a Door. K-01 Serf collects debris. K-01 Serf cleans the Assembly Bed. Penetrated by Slug. P-70 Sage resets K-01 Serf, system corruption cleaned. K-01 Serf collects debris. Connecting with Repair Station... >>Refit Scanning configuration... Attaching: Backup Power I x2 Backup Propulsion I x2 Backup Laser I x2 Slug penetrates Wall. Backup Power I destroyed. Map ----- +----------------------------------------------------+ | ?????????????????????????????????????????????????? | | ?????????????????????????????????????????????????? | | ?????????????????????????????????????????????????? | | ?????????????????????????????????????????????????? | | ????????????????????????????? ???????????????? | | ????????????????????????????? "?????????????? | | ????????????????????????????# ?????????????? | | ????????????????????????????# "?????????????? | | ???????????????????????????## "?????????????? | | ???????????????????????????? ""????????????? | | ???????????????????????????? ! ""????????????? | | ???????????????????????????? ????????????? | | ???????????????????????????? """???????????? | | ???????????????????????????? """???????????? | | ????????????????????????????? """???????????? | | ????????????????????????????? ""????????????? | | ????????????????????????????? ????????????? | | ????????????????????????????? ?????????????? | | ?????????????????????????????# #?????????????? | | ?????????????????????????????# #?????????????? | | ?????????????????????????????# #?????????????? | | ?????????????????????????????# #?????????????? | | ???????????????############### #?????????????? | | ???????????????# ## #?????????????? | | ???????????????# ## ##????????????? | | ???????????????# @ # ! #????????????? | | ???????????????# s p # ##+###???????? | | ???????????????# """s""" # ####### | | ???????????????# """ """ p/ % / | | ???????????????# """s""" #Y ##T#### " | | ???????????????# s # #### #???????? | | ???????????????# """ """ # k #????#???????? | | ???????????????# """ R" ### k%######+####????? | | ???????????????# """ """ #?# # #????? | | ???????????????# #?# + #????? | | ???????????????##############?# # ! #????? | | ??????????????????????????????# # #????? | | ??????????????????????????????# #? #????? | | ??????????????????????????????# #?? #????? | | ??????????????????????????????# #??? #????? | | ??????????????????????????????# #??? #????? | | ??????????????????????????????# #????######????? | | ??????????????????????????????# #??????????????? | | ??????????????????????????????# H #??????????????? | | ??????????????????????????????# #??????????????? | | ??????????????????????????????" #??????????????? | | ?????????????????????????????#" ##?????????????? | | ?????????????????????######+## % #?????????????? | | ?????????????????????# #?????????????? | | ?????????????????????# #?????????????? | +----------------------------------------------------+ Best States ------------- Heat Dissipation 86 Coolant Potential 100 Energy Generation 51 Energy Capacity 655 Matter Stores 550 Matter Capacity 550 Sight Range 22 Terrain Scan Range 16 Terrain Scan Density 10 Jamming Range 12 Power Amplification 20 Additional Mass Support 6 Armor Coverage 225 Evasion (%) 70 Core Analysis 6 Offensive Hacking 20 Item Schematics ----------------- Structural Scanner | -10/Materials | Hacked Mak. Hammer | -6/Factory | Scanalyzed Mic. Nuclear Core | -6/Factory | Scanalyzed Robot Schematics ------------------ None Fabricated ------------ Adv. Cryofiber Web | x2 | -7/Factory | Preloaded Lgt. Antimatter Reactor | x2 | -5/Factory | Preloaded Repaired ---------- Nothing Studied --------- Flight Unit | -8/Materials | Hacked Lgt. Ion Engine | -8/Materials | Hacked Arm. Wheel | -8/Materials | Hacked Shock Bomb Launcher | -7/Factory | Hacked Minigun | -6/Factory | Hacked Alien Tech Used ----------------- None Achievements -------------- Construction Begets Destruction Leap Before You Look Challenges ------------ None Game ------ Seed CobblerCentriumWeb Manual? 0 Play Time 01:37:01 Cumulative 56.6 hours Start 2026.08.23 @ 10:20:33 End 2026.08.23 @ 20:52:46 Sessions 3 Manual Loads 0 Difficulty Rogue Special Mode None Game No. 70 Rogue 70 Adventurer 0 Explorer 0 Win Type - Total 0 Types 0/0/0/0/0/0/0/0/0/0 Lore% 43 Gallery% 32 Achievement% 29 Wizard Run 0 Options --------- Layout 1 ASCII 0 Keyboard 0 Movement Mouse Keybinds 0 Fullscreen 2 Font 18/SmallcapsGlow Map View 51x43 Zoom Use 0% Tactical HUD 0 Map Filters NONE Filters NONE Steam 1 RUN: 0aa800f4-6daa-4540-b9b2-3a5aac6fa6b2